fUSD/lending_fUSD_20240811
["ID","MTS","AMOUNT","RATE_DAILY","PERIOD"]
[334656236,1723404634628,-170.801193,0.00010999,2]
[334656237,1723404634638,-170.801193,0.00010999,2]
[334656238,1723404634650,-151.0,0.00010999,2]
[334656239,1723404634660,-151.0,0.00010999,2]
[334656240,1723404634670,-151.0,0.00010999,2]
[334656241,1723404634680,-169.962717,0.00010999,2]
[334656242,1723404634690,-151.0,0.00010999,2]
[334656243,1723404634699,-151.0,0.00010999,2]
[334656244,1723404634711,-151.0,0.00010999,2]
[334656245,1723404634721,-151.0,0.00010999,2]
[334656246,1723404634731,-891.685833,0.00010999,2]
[334656247,1723404634741,-891.685833,0.00010999,2]
[334656248,1723404634751,-891.685833,0.00010999,2]
[334656249,1723404634761,-891.685833,0.00010999,2]
[334656250,1723404634771,-324.901241,0.00010999,2]
[334656251,1723404634780,-324.901241,0.00010999,2]
[334656252,1723404634790,-324.901241,0.00010999,2]
[334656253,1723404634799,-324.901241,0.00010999,2]
[334656254,1723404634809,-178.707661,0.00010999,2]
[334656255,1723404634818,-178.707661,0.00010999,2]
[334656256,1723404634828,-151.0,0.00010999,2]
[334656257,1723404634837,-178.707661,0.00010999,2]
[334656258,1723404634848,-151.0,0.00010999,2]
[334656259,1723404634858,-178.707661,0.00010999,2]
[334656260,1723404634867,-151.0,0.00010999,2]
[334656261,1723404634877,-156.713619,0.00010999,2]
[334656262,1723404634886,-151.846237,0.00010999,2]
[334656263,1723404634895,-151.241947,0.00010999,2]
[334656264,1723404634905,-151.0,0.00010999,2]
[334656265,1723404634915,-151.0,0.00010999,2]
[334656266,1723404634926,-151.0,0.00010999,2]
[334656267,1723404634936,-151.0,0.00010999,2]
[334656268,1723404634946,-151.0,0.00010999,2]
[334656269,1723404634958,-151.0,0.00010999,2]
[334656270,1723404634969,-214.694078,0.00010999,2]
[334656271,1723404634978,-151.0,0.00010999,2]
[334656272,1723404634987,-151.0,0.00010999,2]
[334656273,1723404634996,-151.0,0.00010999,2]
[334656274,1723404635009,-151.0,0.00010999,2]
[334656275,1723404635019,-151.0,0.00010999,2]
[334656276,1723404635029,-151.0,0.00010999,2]
[334656277,1723404635040,-151.0,0.00010999,2]
[334656278,1723404635050,-151.0,0.00010999,2]
[334656279,1723404635059,-151.0,0.00010999,2]
[334656280,1723404635069,-151.0,0.00010999,2]
[334656281,1723404635079,-151.0,0.00010999,2]
[334656282,1723404635088,-151.0,0.00010999,2]
[334656283,1723404635098,-285.878794,0.00010999,2]
[334656284,1723404635107,-151.0,0.00010999,2]
[334656285,1723404635117,-780.126056,0.00010999,2]
[334656286,1723404635126,-780.126056,0.00010999,2]
[334656287,1723404635136,-780.126056,0.00010999,2]
[334656288,1723404635146,-780.126056,0.00010999,2]
[334656289,1723404635155,-151.0,0.00010999,2]
[334656290,1723404635165,-151.0,0.00010999,2]
[334656291,1723404635175,-151.0,0.00010999,2]
[334656292,1723404635183,-151.0,0.00010999,2]
[334656293,1723404635193,-151.0,0.00010999,2]
[334656294,1723404635203,-780.126056,0.00010999,2]
[334656295,1723404635219,-151.0,0.00010999,2]
[334656296,1723404635228,-780.126056,0.00010999,2]
[334656297,1723404635238,-151.0,0.00010999,2]
[334656298,1723404635247,-780.126056,0.00010999,2]
[334656299,1723404635256,-151.0,0.00010999,2]
[334656300,1723404635266,-780.126056,0.00010999,2]
[334656301,1723404635275,-151.0,0.00010999,2]
[334656302,1723404635285,-151.0,0.00010999,2]
[334656303,1723404635294,-151.0,0.00010999,2]
[334656304,1723404635303,-151.0,0.00010999,2]
[334656305,1723404635312,-151.0,0.00010999,2]
[334656306,1723404635321,-151.0,0.00010999,2]
[334656307,1723404635330,-151.0,0.00010999,2]
[334656308,1723404635339,-151.0,0.00010999,2]
[334656309,1723404635349,-921.017455,0.00010999,2]
[334656310,1723404635358,-921.017455,0.00010999,2]
[334656311,1723404635367,-921.017455,0.00010999,2]
[334656312,1723404635376,-921.017455,0.00010999,2]
[334656313,1723404635386,-151.0,0.00010999,2]
[334656314,1723404635395,-151.0,0.00010999,2]
[334656315,1723404635405,-151.0,0.00010999,2]
[334656316,1723404635414,-151.0,0.00010999,2]
[334656317,1723404635423,-151.0,0.00010999,2]
[334656318,1723404635433,-151.0,0.00010999,2]
[334656319,1723404635442,-151.0,0.00010999,2]
[334656320,1723404635451,-186.189962,0.00010999,2]
[334656321,1723404635470,-151.0,0.00010999,2]
[334656322,1723404635483,-151.806912,0.00010999,2]
[334656323,1723404635492,-220.057501,0.00010999,2]
[334656324,1723404635502,-220.057501,0.00010999,2]
[334656325,1723404635511,-220.057501,0.00010999,2]
[334656326,1723404635521,-220.057501,0.00010999,2]
[334656327,1723404635530,-220.057501,0.00010999,2]
[334656328,1723404635540,-220.057501,0.00010999,2]
[334656329,1723404635550,-220.057501,0.00010999,2]
[334656330,1723404635559,-220.057501,0.00010999,2]
[334656331,1723404635568,-254.506853,0.00010999,2]
[334656332,1723404635578,-254.506853,0.00010999,2]
[334656333,1723404635587,-254.506853,0.00010999,2]
[334656334,1723404635597,-254.506853,0.00010999,2]
[334656335,1723404635606,-151.0,0.00010999,2]
[334656336,1723404635616,-151.0,0.00010999,2]
[334656337,1723404635625,-151.0,0.00010999,2]
[334656338,1723404635634,-151.0,0.00010999,2]
[334656339,1723404635645,-151.0,0.00010999,2]
[334656340,1723404635654,-10000.0,0.00010999,2]
[334656341,1723404635664,-10000.0,0.00010999,2]
[334656342,1723404635673,-10000.0,0.00010999,2]
[334656343,1723404635683,-10000.0,0.00010999,2]
[334656344,1723404635693,-10000.0,0.00010999,2]
[334656345,1723404635702,-10000.0,0.00010999,2]
[334656346,1723404635720,-10000.0,0.00010999,2]
[334656347,1723404635730,-10000.0,0.00010999,2]
[334656348,1723404635740,-151.0,0.00010999,2]
[334656349,1723404635750,-151.0,0.00010999,2]
[334656350,1723404635761,-2489.32729353,0.00010999,2]
[334656351,1723404635782,-500.01034045,0.00010999,2]
[334656352,1723404635805,-299.99,0.00010999,2]
[334656353,1723404635918,-749.01593241,0.00010999,2]
[334656354,1723404635932,-1339.29878654,0.00010999,2]
[334656355,1723404635943,-1198.16775,0.00010999,2]
[334656356,1723404635954,-451.92492773,0.00010999,2]
[334656357,1723404638485,-151.0,0.00010998,2]
[334656358,1723404638495,-151.0,0.00010998,2]
[334656359,1723404638505,-151.0,0.00010998,2]
[334656361,1723404638513,-151.0,0.00010998,2]
[334656363,1723404638523,-2972.26496934,0.00010999,2]
[334656364,1723404638532,-151.0,0.00010999,2]
[334656367,1723404638541,-151.0,0.00010999,2]
[334656368,1723404638551,-57.78114584,0.00010999,2]
[334656370,1723404638571,-2499.94457813,0.00010999,2]
[334656374,1723404638660,-7442.27427603,0.00010999,2]
[334656375,1723404638670,-151.0,0.00010999,2]
[334656376,1723404638679,-151.0,0.00010999,2]
[334656377,1723404638688,-10000.0,0.00010999,2]
[334656378,1723404638698,-151.0,0.00010999,2]
[334656379,1723404638711,-151.0,0.00010999,2]
[334656380,1723404638720,-10000.0,0.00010999,2]
[334656381,1723404638730,-151.0,0.00010999,2]
[334656382,1723404638740,-151.0,0.00010999,2]
[334656383,1723404638749,-10000.0,0.00010999,2]
[334656384,1723404638759,-151.0,0.00010999,2]
[334656385,1723404638769,-151.0,0.00010999,2]
[334656386,1723404638778,-151.0,0.00010999,2]
[334656387,1723404638788,-151.0,0.00010999,2]
[334656388,1723404638797,-151.0,0.00010999,2]
[334656389,1723404638807,-291.777687,0.00010999,2]
[334656390,1723404638816,-151.0,0.00010999,2]
[334656391,1723404638826,-151.0,0.00010999,2]
[334656392,1723404638835,-151.0,0.00010999,2]
[334656393,1723404638844,-151.0,0.00010999,2]
[334656394,1723404638853,-151.0,0.00010999,2]
[334656395,1723404638862,-151.0,0.00010999,2]
[334656396,1723404638871,-151.0,0.00010999,2]
[334656397,1723404638880,-151.0,0.00010999,2]
[334656398,1723404638889,-151.687143,0.00010999,2]
[334656399,1723404638898,-151.0,0.00010999,2]
[334656400,1723404638908,-151.0,0.00010999,2]
[334656401,1723404638925,-151.0,0.00010999,2]
[334656402,1723404638939,-151.0,0.00010999,2]
[334656403,1723404638954,-152.100335,0.00010999,2]
[334656404,1723404638968,-151.0,0.00010999,2]
[334656405,1723404638981,-151.0,0.00010999,2]
[334656406,1723404638994,-151.0,0.00010999,2]
[334656407,1723404639009,-151.0,0.00010999,2]
[334656408,1723404639023,-151.0,0.00010999,2]
[334656409,1723404639036,-151.0,0.00010999,2]
[334656410,1723404639050,-151.0,0.00010999,2]
[334656411,1723404639064,-151.0,0.00010999,2]
[334656412,1723404639076,-151.0,0.00010999,2]
[334656413,1723404639089,-151.63442,0.00010999,2]
[334656414,1723404639102,-151.0,0.00010999,2]
[334656415,1723404639116,-151.0,0.00010999,2]
[334656416,1723404639128,-151.0,0.00010999,2]
[334656417,1723404639140,-151.0,0.00010999,2]
[334656418,1723404639151,-151.0,0.00010999,2]
[334656419,1723404639163,-151.0,0.00010999,2]
[334656420,1723404639175,-151.0,0.00010999,2]
[334656422,1723404639188,-151.0,0.00010999,2]
[334656423,1723404639201,-151.0,0.00010999,2]
[334656424,1723404639215,-151.0,0.00010999,2]
[334656425,1723404639229,-151.0,0.00010999,2]
[334656426,1723404639243,-151.0,0.00010999,2]
[334656427,1723404639256,-151.0,0.00010999,2]
[334656428,1723404639268,-151.0,0.00010999,2]
[334656429,1723404639278,-151.0,0.00010999,2]
[334656430,1723404639289,-192.548985,0.00010999,2]
[334656431,1723404639302,-192.548985,0.00010999,2]
[334656432,1723404639315,-192.548985,0.00010999,2]
[334656433,1723404639328,-151.0,0.00010999,2]
[334656434,1723404639338,-151.0,0.00010999,2]
[334656435,1723404639351,-192.548985,0.00010999,2]
[334656436,1723404639363,-151.0,0.00010999,2]
[334656437,1723404639376,-192.548985,0.00010999,2]
[334656438,1723404639388,-151.0,0.00010999,2]
[334656439,1723404639400,-151.0,0.00010999,2]
[334656440,1723404639413,-151.0,0.00010999,2]
[334656441,1723404639426,-151.0,0.00010999,2]
[334656442,1723404639440,-151.0,0.00010999,2]
[334656443,1723404639452,-151.0,0.00010999,2]
[334656444,1723404639466,-231.966691,0.00010999,2]
[334656445,1723404639477,-192.548985,0.00010999,2]
[334656446,1723404639489,-192.548985,0.00010999,2]
[334656447,1723404639501,-192.548985,0.00010999,2]
[334656448,1723404639514,-192.548985,0.00010999,2]
[334656449,1723404639526,-192.548985,0.00010999,2]
[334656450,1723404639538,-296.154147,0.00010999,2]
[334656451,1723404639550,-151.0,0.00010999,2]
[334656452,1723404639562,-151.0,0.00010999,2]
[334656453,1723404639576,-151.0,0.00010999,2]
[334656454,1723404639589,-151.0,0.00010999,2]
[334656455,1723404639601,-151.0,0.00010999,2]
[334656456,1723404639613,-151.0,0.00010999,2]
[334656457,1723404639625,-155.435895,0.00010999,2]
[334656458,1723404639636,-151.0,0.00010999,2]
[334656459,1723404639648,-151.0,0.00010999,2]
[334656460,1723404639661,-151.0,0.00010999,2]
[334656461,1723404639673,-151.0,0.00010999,2]
[334656462,1723404639684,-151.0,0.00010999,2]
[334656463,1723404639697,-151.0,0.00010999,2]
[334656464,1723404639710,-151.0,0.00010999,2]
[334656465,1723404639729,-151.0,0.00010999,2]
[334656466,1723404639740,-151.0,0.00010999,2]
[334656467,1723404639752,-151.0,0.00010999,2]
[334656468,1723404639764,-247.83748,0.00010999,2]
[334656469,1723404639775,-151.0,0.00010999,2]
[334656470,1723404639787,-151.0,0.00010999,2]
[334656471,1723404639799,-151.0,0.00010999,2]
[334656472,1723404639812,-151.0,0.00010999,2]
[334656473,1723404639824,-151.0,0.00010999,2]
[334656474,1723404639836,-151.0,0.00010999,2]
[334656475,1723404639848,-192.207636,0.00010999,2]
[334656476,1723404639860,-151.0,0.00010999,2]
[334656477,1723404639872,-151.0,0.00010999,2]
[334656478,1723404639884,-161.698983,0.00010999,2]
[334656479,1723404639895,-151.0,0.00010999,2]
[334656480,1723404639907,-151.0,0.00010999,2]
[334656481,1723404639919,-151.0,0.00010999,2]
[334656482,1723404639935,-151.0,0.00010999,2]
[334656483,1723404639947,-151.0,0.00010999,2]
[334656484,1723404639958,-151.0,0.00010999,2]
[334656485,1723404639971,-271.10009,0.00010999,2]
[334656486,1723404639984,-151.0,0.00010999,2]
[334656487,1723404639996,-292.754907,0.00010999,2]
[334656488,1723404640010,-151.0,0.00010999,2]
[334656489,1723404640022,-151.0,0.00010999,2]
[334656490,1723404640034,-152.095383,0.00010999,2]
[334656491,1723404640047,-185.671038,0.00010999,2]
[334656492,1723404640060,-343.340145,0.00010999,2]
[334656493,1723404640073,-343.340145,0.00010999,2]
[334656494,1723404640088,-343.340145,0.00010999,2]
[334656495,1723404640101,-343.340145,0.00010999,2]
[334656496,1723404640113,-343.340145,0.00010999,2]
[334656497,1723404640126,-343.340145,0.00010999,2]
[334656498,1723404640139,-343.340145,0.00010999,2]
[334656499,1723404640153,-343.340145,0.00010999,2]
[334656500,1723404640167,-343.340145,0.00010999,2]
[334656501,1723404640180,-343.340145,0.00010999,2]
[334656502,1723404640193,-343.340145,0.00010999,2]
[334656503,1723404640206,-343.340145,0.00010999,2]
[334656504,1723404640228,-151.0,0.00010999,2]
[334656505,1723404640239,-151.0,0.00010999,2]
[334656506,1723404640251,-151.0,0.00010999,2]
[334656507,1723404640263,-151.0,0.00010999,2]
[334656508,1723404640276,-151.0,0.00010999,2]
[334656509,1723404640287,-151.0,0.00010999,2]
[334656510,1723404640299,-151.0,0.00010999,2]
[334656511,1723404640312,-151.0,0.00010999,2]
[334656512,1723404640321,-151.0,0.00010999,2]
[334656513,1723404640330,-151.0,0.00010999,2]
[334656514,1723404640339,-151.0,0.00010999,2]
[334656515,1723404640348,-151.0,0.00010999,2]
[334656516,1723404640357,-151.0,0.00010999,2]
[334656517,1723404640366,-151.0,0.00010999,2]
[334656518,1723404640375,-151.0,0.00010999,2]
[334656519,1723404640385,-151.0,0.00010999,2]
[334656520,1723404640395,-151.0,0.00010999,2]
[334656521,1723404640404,-151.0,0.00010999,2]
[334656523,1723404640414,-152.83282,0.00010999,2]
[334656524,1723404640423,-151.0,0.00010999,2]
[334656525,1723404640433,-151.0,0.00010999,2]
[334656526,1723404640666,-151.0,0.00010999,2]
[334656527,1723404640686,-151.0,0.00010999,2]
[334656528,1723404640696,-189.58358,0.00010999,2]
[334656529,1723404640705,-151.0,0.00010999,2]
[334656530,1723404640716,-151.0,0.00010999,2]
[334656531,1723404640725,-608.0,0.00011,2]
[334656532,1723404640734,-36330.32711841,0.00011,2]
[334656533,1723404640744,-2449164.18266715,0.00011,2]
[334656534,1723404640757,-404954.00231383,0.00011,2]
[334656535,1723404640781,-200.0,0.00010973,2]
[334656536,1723404640790,-113.147835,0.00011,2]
[334656537,1723404640802,-638.24848553,0.00011,2]
[334656538,1723404640813,-60000.00000002,0.00011,2]
[334656539,1723404640824,-11960.0,0.00011,2]
[334656540,1723404640838,-86722.62371872,0.00011,2]
[334656541,1723404640849,-1998.38304043,0.00011,2]
[334656542,1723404640871,-253.57623654,0.00011,2]
[334656543,1723404640883,-360.18505011,0.00011,2]
[334656544,1723404642223,-475.08264278,0.0001045,2]
[334656545,1723404642243,-17.4745964,0.0001045,2]
[334656546,1723404642254,-870.5254036,0.00010779,2]
[334656547,1723404642265,-128.33316351,0.00010779,2]
[334656548,1723404642274,-4406.64806115,0.00011,2]
[334656549,1723404642584,-372.50946649,0.00011,2]
[334656550,1723404642596,-1224.96970469,0.00011,2]
[334656551,1723404642608,-12921.63839813,0.00011,2]
[334656552,1723404642620,-14669.655,0.00011,2]
[334656553,1723404642631,-3602.4,0.00011,2]
[334656554,1723404642642,-1241.53944513,0.00011,2]
[334656555,1723404642662,-892.40355142,0.00011,2]
[334656556,1723404642673,-760.32601188,0.00011,2]
[334656557,1723404642684,-870.05607451,0.00011,2]
[334656558,1723404642696,-299.584476,0.00011,2]
[334656559,1723404642707,-98065.54110066,0.00011,2]
[334656560,1723404643284,-151.0,0.00010998,2]
[334656562,1723404643294,-151.0,0.00010998,2]
[334656563,1723404643303,-6654.50174356,0.00011,2]
[334656564,1723404643316,-593.8994378,0.00011,2]
[334656565,1723404643355,-191816.25507628,0.00011,2]
[334656571,1723404643548,-31260.49999999,0.00011,2]
[334656572,1723404643561,-266.89175169,0.00011,2]
[334656573,1723404643633,-151.0,0.00010999,2]
[334656574,1723404643642,-306.46955249,0.00011,2]
[334656575,1723404643654,-1777.28742832,0.00011,2]
[334656576,1723404643669,-6950.22205377,0.00011,2]
[334656577,1723404643681,-419.87653924,0.00011,2]
[334656583,1723404644601,-831.872596,0.00011,2]
[334656584,1723404644614,-296.95776435,0.00011,2]
[334656585,1723404644625,-566.62860673,0.00011,2]
[334656586,1723404644637,-1200.0,0.00011,2]
[334656587,1723404644648,-524.26,0.00011,2]
[334656588,1723404644659,-317.58278286,0.00011,2]
[334656589,1723404644670,-253.88923684,0.00011,2]
[334656590,1723404644682,-6645.17838912,0.00011,2]
[334656592,1723404646785,-151.0,0.00010999,2]
[334656593,1723404646795,-151.0,0.00010999,2]
[334656594,1723404646804,-151.0,0.00010999,2]
[334656595,1723404646813,-151.0,0.00010999,2]
[334656596,1723404646823,-151.0,0.00010999,2]
[334656597,1723404646832,-846.37202882,0.00011,2]
[334656598,1723404646844,-2693.82653913,0.00011,2]
[334656599,1723404646874,-213.196518,0.00010998,2]
[334656600,1723404646883,-1347.753482,0.00011,2]
[334656601,1723404646895,-497.37531184,0.00011,2]
[334656602,1723404646906,-362162.45363938,0.00011,2]
[334656604,1723404646921,-376.87925389,0.00011,2]
[334656605,1723404646936,-279.6363521,0.00011,2]
[334656607,1723404646947,-436.81,0.00011,2]
[334656697,1723404792399,813.75,8.219e-05,2]
[334656698,1723404998526,223.12,9.477e-05,2]
[334656699,1723404998562,973.42537251,8.219e-05,2]
[334656702,1723405083670,174.21,9.523e-05,2]
[334656703,1723405089115,693.0340361,8.219e-05,2]
[334656704,1723405119414,200.0,9.536e-05,2]
[334656705,1723405122355,294.79,9.536e-05,2]
[334656706,1723405276205,408.45,9.451e-05,2]
[334656707,1723405308711,1067.75,8.219e-05,2]
[334656708,1723405390448,2553.59,9.434e-05,2]
[334656711,1723405491973,1740.77,9.415e-05,2]
[334656712,1723405600143,840.0,9.399e-05,2]
[334656729,1723405648948,164.16,9.419e-05,2]
[334656731,1723405788426,1029.57,8.219e-05,2]
[334656748,1723405831562,-264.569331,9.838e-05,2]
[334656750,1723405831572,-150.0,9.888e-05,2]
[334656751,1723405831582,-260.72,9.999e-05,2]
[334656752,1723405831591,-260.72,0.00010001,2]
[334656753,1723405831601,-260.72,0.00010004,2]
[334656754,1723405831613,-260.72,0.00010006,2]
[334656755,1723405831622,-260.72,0.00010009,2]
[334656756,1723405831631,-260.72,0.00010012,2]
[334656757,1723405831640,-260.72,0.00010014,2]
[334656758,1723405831649,-260.72,0.00010017,2]
[334656759,1723405831659,-300.0,0.00010019,2]
[334656760,1723405831668,-260.72,0.0001002,2]
[334656761,1723405831678,-2632.935325,0.0001002,2]
[334656762,1723405831705,-899.999998,0.0001002,2]
[334656763,1723405831716,-3082.03617125,0.0001002,2]
[334656764,1723405831727,-740.0,0.0001002,2]
[334656765,1723405831750,-9092.08850575,0.0001002,2]
[334656766,1723405831759,-499.99,0.0001002,2]
[334656767,1723405831769,-260.72,0.00010022,2]
[334656768,1723405831779,-260.72,0.00010025,2]
[334656769,1723405831788,-260.72,0.00010027,2]
[334656770,1723405831797,-260.72,0.0001003,2]
[334656771,1723405831807,-260.72,0.00010033,2]
[334656772,1723405831817,-260.72,0.00010035,2]
[334656773,1723405831826,-260.72,0.00010038,2]
[334656774,1723405831836,-260.72,0.00010041,2]
[334656775,1723405831845,-260.72,0.00010043,2]
[334656776,1723405831854,-260.72,0.00010046,2]
[334656777,1723405831867,-260.72,0.00010049,2]
[334656778,1723405831876,-150.0,0.00010195,2]
[334656780,1723405831886,-187.92469457,0.00010196,2]
[334656782,1723405831896,-155.06863383,0.00010196,2]
[334656784,1723405831905,-155.09386373,0.00010196,2]
[334656787,1723405831915,-419.06587327,0.00010196,2]
[334656789,1723405831924,-155.0,0.00010196,2]
[334656791,1723405831934,-921.42075982,0.00010196,2]
[334656793,1723405831943,-2898.52349871,0.00010196,2]
[334656795,1723405831953,-686.91534467,0.00010196,2]
[334656796,1723405831962,-356.49,0.00010378,2]
[334656799,1723405831972,-356.49,0.000104,2]
[334656800,1723405831983,-356.49,0.000104,2]
[334656803,1723405831994,-819.5,0.00010441,2]
[334656805,1723405832003,-1670.14,0.00010441,2]
[334656807,1723405832012,-1029.57,0.00010447,2]
[334656808,1723405832022,-840.0,0.00010574,2]
[334656811,1723405832032,-150.0,0.00010578,2]
[334656812,1723405832041,-355.85,0.00010578,2]
[334656813,1723405832051,-164.16,0.00010596,2]
[334656814,1723405832060,-200.0,0.00010728,2]
[334656815,1723405832070,-294.79,0.00010728,2]
[334656816,1723405832080,-337.3008,0.0001088,2]
[334656817,1723405832091,-620.10015,0.0001089,2]
[334656818,1723405832103,-1000.0,0.00010898,2]
[334656819,1723405832115,-1543.6991,0.00010899,2]
[334656820,1723405832125,-3050.0019,0.00010899,2]
[334656821,1723405832135,-2647.4202,0.00010899,2]
[334656822,1723405832146,-26556.4543,0.000109,2]
[334656823,1723405832156,-948.265,0.000109,2]
[334656824,1723405832169,-353.02,0.000109,2]
[334656825,1723405832180,-192.46545999,0.000109,2]
[334656826,1723405832189,-152.35222135,0.000109,2]
[334656827,1723405832198,-6321.16433453,0.000109,2]
[334656828,1723405832207,-457.34,0.00010959,5]
[334656829,1723405832217,-158.968938,0.00010998,2]
[334656830,1723405832227,-158.968938,0.00010998,2]
[334656831,1723405832237,-158.968938,0.00010998,2]
[334656832,1723405832247,-158.968938,0.00010998,2]
[334656833,1723405832258,-151.0,0.00010998,2]
[334656834,1723405832271,-151.0,0.00010998,2]
[334656835,1723405832281,-151.0,0.00010998,2]
[334656836,1723405832291,-151.0,0.00010998,2]
[334656837,1723405832302,-151.0,0.00010998,2]
[334656838,1723405832312,-290.674022,0.00010998,2]
[334656839,1723405832323,-158.968938,0.00010999,2]
[334656840,1723405832334,-158.968938,0.00010999,2]
[334656841,1723405832347,-158.968938,0.00010999,2]
[334656842,1723405832359,-158.968938,0.00010999,2]
[334656843,1723405832368,-158.968938,0.00010999,2]
[334656844,1723405832378,-158.968938,0.00010999,2]
[334656845,1723405832387,-158.968938,0.00010999,2]
[334656846,1723405832396,-158.968938,0.00010999,2]
[334656847,1723405832407,-158.968938,0.00010999,2]
[334656848,1723405832416,-158.968938,0.00010999,2]
[334656849,1723405832427,-158.968938,0.00010999,2]
[334656850,1723405832439,-158.968938,0.00010999,2]
[334656851,1723405832448,-151.0,0.00010999,2]
[334656852,1723405832458,-151.0,0.00010999,2]
[334656853,1723405832468,-151.0,0.00010999,2]
[334656854,1723405832479,-151.0,0.00010999,2]
[334656855,1723405832489,-151.0,0.00010999,2]
[334656856,1723405832499,-151.0,0.00010999,2]
[334656857,1723405832510,-151.0,0.00010999,2]
[334656858,1723405832519,-189.108,0.00010999,2]
[334656859,1723405832530,-500.0,0.00010999,2]
[334656860,1723405832539,-500.0,0.00010999,2]
[334656861,1723405832548,-500.0,0.00010999,2]
[334656862,1723405832558,-500.0,0.00010999,2]
[334656863,1723405832567,-500.0,0.00010999,2]
[334656864,1723405832576,-500.0,0.00010999,2]
[334656865,1723405832586,-500.0,0.00010999,2]
[334656866,1723405832595,-500.0,0.00010999,2]
[334656867,1723405832605,-500.0,0.00010999,2]
[334656868,1723405832615,-500.0,0.00010999,2]
[334656869,1723405832624,-500.0,0.00010999,2]
[334656870,1723405832634,-284.0619575,0.00010999,2]
[334656871,1723405832644,-500.0,0.00010999,2]
[334656872,1723405832653,-500.0,0.00010999,2]
[334656873,1723405832663,-500.0,0.00010999,2]
[334656874,1723405832672,-500.0,0.00010999,2]
[334656875,1723405832682,-500.0,0.00010999,2]
[334656876,1723405832691,-500.0,0.00010999,2]
[334656877,1723405832700,-500.0,0.00010999,2]
[334656878,1723405832709,-500.0,0.00010999,2]
[334656879,1723405832719,-655.0,0.00011,2]
[334656880,1723405832728,-16103.18455799,0.00011,2]
[334656881,1723405832741,-1453.41873983,0.00011,2]
[334656882,1723405832753,-609.86344662,0.00011,2]
[334656884,1723405837689,-1279.53912256,0.00011,2]
[334656885,1723405837701,-1003.59623625,0.00011,2]
[334656886,1723405837796,-282.48007,0.00011,2]
[334656887,1723405837955,-500.54133244,0.00011,2]
[334656902,1723405839708,-312.03720529,0.00011,2]
[334656903,1723405839720,-846.37505455,0.00011,2]
[334656904,1723405839732,-342.02785474,0.00011,2]
[334656905,1723405839743,-1497.005,0.00011,2]
[334656906,1723405839844,-4580.0,0.00011,2]
[334656907,1723405839855,-41287.00834834,0.00011,2]
[334656908,1723405839868,-581.0,0.00011,2]
[334656909,1723405839878,-10548.49574034,0.00011,2]
[334656910,1723405839889,-12455.74775694,0.00011,2]
[334656911,1723405839951,-11473.98235475,0.00011,2]
[334656912,1723405840006,-272.9844856,0.00011,2]
[334657095,1723405845922,-61758.23075336,0.00011,2]
[334657144,1723406266547,961.73,8.509e-05,2]
[334657145,1723406371314,6347.02808012,8.509e-05,2]
[334657174,1723406737008,935.07,8.245e-05,2]
[334657225,1723406932457,907.2479064,8.245e-05,2]
[334657226,1723406947460,907.2479064,8.245e-05,2]